[Event "*** Titled Tuesday Blitz"]
[Site "Chess.com"]
[Date "2020.04.28"]
[Round "9"]
[White "CaspiIsrael"]
[Black "noblerone"]
[Result "1-0"]
[WhiteElo "2627"]
[BlackElo "2443"]
[TimeControl "180+1"]
[EndTime "11:46:40 PDT"]
[Termination "CaspiIsrael won on time"]

1. e4 {[%clk 0:03:00.9]} 1... c5 {[%clk 0:02:55.6]} 2. Nf3 {[%clk 0:03:00.4]}
2... e6 {[%clk 0:02:55.7]} 3. d4 {[%clk 0:03:00.9]} 3... cxd4 {[%clk 0:02:56.6]}
4. Nxd4 {[%clk 0:03:01.6]} 4... Qb6 {[%clk 0:02:56.8]} 5. Nc3 {[%clk 0:02:57.5]}
5... Bc5 {[%clk 0:02:56.1]} 6. Na4 {[%clk 0:02:57.8]} 6... Qa5+ {[%clk
0:02:55.9]} 7. c3 {[%clk 0:02:58.2]} 7... Bxd4 {[%clk 0:02:54.5]} 8. Qxd4 {[%clk
0:02:59.1]} 8... Nf6 {[%clk 0:02:54.8]} 9. Nc5 {[%clk 0:02:58.3]} 9... Nc6
{[%clk 0:02:51.9]} 10. Qd6 {[%clk 0:02:58.2]} 10... b6 {[%clk 0:02:48.8]} 11.
Nb3 {[%clk 0:02:58.3]} 11... Qe5 {[%clk 0:02:40.8]} 12. Qxe5 {[%clk 0:02:56.4]}
12... Nxe5 {[%clk 0:02:41.7]} 13. f4 {[%clk 0:02:40.7]} 13... Ng6 {[%clk
0:02:41.6]} 14. e5 {[%clk 0:02:35.6]} 14... Nd5 {[%clk 0:02:32.1]} 15. h4 {[%clk
0:02:34.1]} 15... h5 {[%clk 0:02:13.7]} 16. g3 {[%clk 0:02:33.8]} 16... Bb7
{[%clk 0:02:08.9]} 17. Bg2 {[%clk 0:02:26.2]} 17... O-O-O {[%clk 0:02:09.2]} 18.
Bd2 {[%clk 0:02:04.4]} 18... d6 {[%clk 0:02:00.6]} 19. exd6 {[%clk 0:01:59.8]}
19... Rxd6 {[%clk 0:01:58.1]} 20. Kf2 {[%clk 0:02:00.3]} 20... Nf6 {[%clk
0:01:54.9]} 21. Bxb7+ {[%clk 0:01:56.6]} 21... Kxb7 {[%clk 0:01:54.9]} 22. Rhd1
{[%clk 0:01:56.2]} 22... Rhd8 {[%clk 0:01:52.5]} 23. Nd4 {[%clk 0:01:55.1]}
23... Ng4+ {[%clk 0:01:29.6]} 24. Kf3 {[%clk 0:01:54.5]} 24... e5 {[%clk
0:01:26.7]} 25. fxe5 {[%clk 0:01:54.7]} 25... N6xe5+ {[%clk 0:01:27.6]} 26. Kg2
{[%clk 0:01:54.5]} 26... Nc4 {[%clk 0:01:26.7]} 27. Bf4 {[%clk 0:01:54.1]} 27...
Nce3+ {[%clk 0:01:23.4]} 28. Kf3 {[%clk 0:01:49.5]} 28... Nxd1 {[%clk
0:01:23.1]} 29. Bxd6 {[%clk 0:01:46]} 29... Nxb2 {[%clk 0:01:16]} 30. Bf4 {[%clk
0:01:42]} 30... Na4 {[%clk 0:01:13]} 31. Rc1 {[%clk 0:01:38.2]} 31... g6 {[%clk
0:00:55.4]} 32. Nb5 {[%clk 0:01:37.8]} 32... Rd7 {[%clk 0:00:43.6]} 33. c4
{[%clk 0:01:34.5]} 33... a6 {[%clk 0:00:42.1]} 34. Nd6+ {[%clk 0:01:33.8]} 34...
Kc6 {[%clk 0:00:40]} 35. Ne4 {[%clk 0:01:23.9]} 35... Nc5 {[%clk 0:00:36.2]} 36.
Nc3 {[%clk 0:01:07.9]} 36... Rd3+ {[%clk 0:00:32.9]} 37. Ke2 {[%clk 0:01:05.1]}
37... Rd4 {[%clk 0:00:30.6]} 38. Nd5 {[%clk 0:01:02.6]} 38... f6 {[%clk
0:00:25.3]} 39. Be3 {[%clk 0:00:58.6]} 39... Nxe3 {[%clk 0:00:24.4]} 40. Kxe3
{[%clk 0:00:58.9]} 40... Re4+ {[%clk 0:00:24.5]} 41. Kf3 {[%clk 0:00:58.4]}
41... Re6 {[%clk 0:00:25.4]} 42. Rb1 {[%clk 0:00:55.5]} 42... b5 {[%clk
0:00:24.4]} 43. Nf4 {[%clk 0:00:55.1]} 43... Rd6 {[%clk 0:00:23.2]} 44. cxb5+
{[%clk 0:00:56]} 44... axb5 {[%clk 0:00:23.2]} 45. Nxg6 {[%clk 0:00:55.9]} 45...
Rd3+ {[%clk 0:00:23.4]} 46. Kf4 {[%clk 0:00:54.4]} 46... Rd2 {[%clk 0:00:23.6]}
47. Ne7+ {[%clk 0:00:46.1]} 47... Kb6 {[%clk 0:00:20.7]} 48. Kf5 {[%clk
0:00:39.9]} 48... Rf2+ {[%clk 0:00:19.1]} 49. Kg6 {[%clk 0:00:38.6]} 49... Rxa2
{[%clk 0:00:15.1]} 50. Nd5+ {[%clk 0:00:36]} 50... Ka5 {[%clk 0:00:07.4]} 51.
Nc3 {[%clk 0:00:28.7]} 1-0

[Event "*** Titled Tuesday Blitz"]
[Site "Chess.com"]
[Date "2020.04.28"]
[Round "9"]
[White "dzhumagaliev"]
[Black "LuckSlayeer"]
[Result "1-0"]
[WhiteElo "2730"]
[BlackElo "2529"]
[TimeControl "180+1"]
[EndTime "11:46:41 PDT"]
[Termination "dzhumagaliev won by resignation"]

1. h4 {[%clk 0:03:00.9]} 1... d5 {[%clk 0:02:59.4]} 2. h5 {[%clk 0:03:01.7]}
2... e5 {[%clk 0:02:57.8]} 3. c3 {[%clk 0:03:01.5]} 3... c5 {[%clk 0:02:56.3]}
4. d4 {[%clk 0:03:02.4]} 4... exd4 {[%clk 0:02:55.3]} 5. cxd4 {[%clk 0:03:03.3]}
5... Nc6 {[%clk 0:02:55.8]} 6. Nf3 {[%clk 0:03:03.3]} 6... cxd4 {[%clk
0:02:53.9]} 7. h6 {[%clk 0:03:03.4]} 7... Nxh6 {[%clk 0:02:51.1]} 8. Bxh6 {[%clk
0:03:02.4]} 8... gxh6 {[%clk 0:02:51.7]} 9. Nbd2 {[%clk 0:03:02.6]} 9... Bg7
{[%clk 0:02:47.6]} 10. Qb3 {[%clk 0:03:02]} 10... Qb6 {[%clk 0:02:40.4]} 11. Rd1
{[%clk 0:02:46.3]} 11... Bf5 {[%clk 0:02:02.8]} 12. g4 {[%clk 0:02:38.4]} 12...
Bxg4 {[%clk 0:01:45.2]} 13. Rg1 {[%clk 0:02:37.8]} 13... h5 {[%clk 0:01:44.9]}
14. Qxd5 {[%clk 0:02:34.9]} 14... Nb4 {[%clk 0:01:34]} 15. Qe4+ {[%clk
0:02:28.1]} 15... Qe6 {[%clk 0:01:33.9]} 16. Qxe6+ {[%clk 0:02:18.3]} 16... Bxe6
{[%clk 0:01:34.8]} 17. Rc1 {[%clk 0:02:11.8]} 17... Bh6 {[%clk 0:01:20.4]} 18.
a3 {[%clk 0:02:08.2]} 18... Nc6 {[%clk 0:01:18.6]} 19. Rc5 {[%clk 0:02:04.3]}
19... f5 {[%clk 0:01:09.4]} 20. Bh3 {[%clk 0:01:57.5]} 20... Bf8 {[%clk
0:01:03.1]} 21. Rb5 {[%clk 0:01:55.6]} 21... a6 {[%clk 0:00:37.4]} 22. Rxb7
{[%clk 0:01:53]} 22... O-O-O {[%clk 0:00:37]} 23. Rb6 {[%clk 0:01:40.3]} 23...
Kc7 {[%clk 0:00:36.9]} 24. Rxa6 {[%clk 0:01:40.5]} 24... d3 {[%clk 0:00:31.2]}
25. exd3 {[%clk 0:01:28.9]} 25... Bh6 {[%clk 0:00:18.8]} 26. Nc4 {[%clk
0:01:15.6]} 26... Rhe8 {[%clk 0:00:10.6]} 27. Kf1 {[%clk 0:01:15.3]} 27... Bd5
{[%clk 0:00:08.6]} 28. Nfd2 {[%clk 0:01:00.2]} 28... Bxc4 {[%clk 0:00:06.6]} 29.
Nxc4 {[%clk 0:01:01.1]} 29... Rxd3 {[%clk 0:00:06.7]} 30. Rg3 {[%clk 0:00:54.6]}
30... Rd1+ {[%clk 0:00:05.6]} 31. Kg2 {[%clk 0:00:54.2]} 31... f4 {[%clk
0:00:06.1]} 32. Rc3 {[%clk 0:00:52.2]} 32... Kb7 {[%clk 0:00:05]} 33. Rxc6
{[%clk 0:00:49.7]} 33... Kxc6 {[%clk 0:00:04.4]} 34. Ne3+ {[%clk 0:00:49.6]}
34... Kd6 {[%clk 0:00:03.8]} 35. Nxd1 {[%clk 0:00:49.7]} 35... Rg8+ {[%clk
0:00:04.4]} 36. Kf3 {[%clk 0:00:49.2]} 36... Rb8 {[%clk 0:00:04.8]} 37. Bf5
{[%clk 0:00:47.1]} 37... Bg7 {[%clk 0:00:05.1]} 38. Rd3+ {[%clk 0:00:46]} 38...
Ke5 {[%clk 0:00:05.5]} 39. Bxh7 {[%clk 0:00:45.9]} 39... h4 {[%clk 0:00:06.1]}
40. Kg4 {[%clk 0:00:44.6]} 40... Ke6 {[%clk 0:00:04.8]} 41. Bf5+ {[%clk
0:00:43.6]} 41... Ke7 {[%clk 0:00:04.3]} 42. Rd7+ {[%clk 0:00:42.6]} 42... Kf8
{[%clk 0:00:04.4]} 43. b4 {[%clk 0:00:40.8]} 43... Bf6 {[%clk 0:00:04.8]} 44.
Kxf4 {[%clk 0:00:39.9]} 44... Rb5 {[%clk 0:00:03.7]} 45. Ne3 {[%clk 0:00:39.5]}
45... Be5+ {[%clk 0:00:03.2]} 46. Kg5 {[%clk 0:00:38.1]} 46... h3 {[%clk
0:00:03.6]} 47. Bxh3 {[%clk 0:00:36.5]} 47... Bg3+ {[%clk 0:00:03.7]} 48. Nf5
{[%clk 0:00:35.3]} 48... Bxf2 {[%clk 0:00:04.1]} 49. Kf6 {[%clk 0:00:35.1]}
49... Rb6+ {[%clk 0:00:02.1]} 50. Rd6 {[%clk 0:00:34.8]} 50... Rxd6+ {[%clk
0:00:02.3]} 51. Nxd6 {[%clk 0:00:34.7]} 51... Bd4+ {[%clk 0:00:02.9]} 52. Ke6
{[%clk 0:00:34.4]} 52... Bb2 {[%clk 0:00:03.6]} 53. a4 {[%clk 0:00:34.5]} 53...
Bc3 {[%clk 0:00:04.2]} 54. b5 {[%clk 0:00:35.4]} 54... Ba5 {[%clk 0:00:04.7]}
55. Nc4 {[%clk 0:00:35.3]} 55... Bc7 {[%clk 0:00:05.3]} 56. b6 {[%clk
0:00:36.2]} 1-0

[Event "*** Titled Tuesday Blitz"]
[Site "Chess.com"]
[Date "2020.04.28"]
[Round "9"]
[White "Vesper2018"]
[Black "Kotofeyca"]
[Result "1-0"]
[WhiteElo "2099"]
[BlackElo "2412"]
[TimeControl "180+1"]
[EndTime "11:46:41 PDT"]
[Termination "Vesper2018 won on time"]

1. e4 {[%clk 0:02:56.5]} 1... c5 {[%clk 0:02:55.8]} 2. Nf3 {[%clk 0:02:56.6]}
2... d6 {[%clk 0:02:56.2]} 3. d4 {[%clk 0:02:55.6]} 3... cxd4 {[%clk 0:02:57.1]}
4. Nxd4 {[%clk 0:02:55.9]} 4... Nf6 {[%clk 0:02:57.7]} 5. Nc3 {[%clk 0:02:56.3]}
5... a6 {[%clk 0:02:58.2]} 6. h3 {[%clk 0:02:55.9]} 6... e5 {[%clk 0:02:56.2]}
7. Nde2 {[%clk 0:02:55.4]} 7... b5 {[%clk 0:02:56.4]} 8. g4 {[%clk 0:02:54.9]}
8... Bb7 {[%clk 0:02:56.9]} 9. Bg2 {[%clk 0:02:54.7]} 9... b4 {[%clk 0:02:57.3]}
10. Nd5 {[%clk 0:02:54.5]} 10... Bxd5 {[%clk 0:02:56.7]} 11. exd5 {[%clk
0:02:54.3]} 11... g6 {[%clk 0:02:55]} 12. O-O {[%clk 0:02:51.8]} 12... Bg7
{[%clk 0:02:55.1]} 13. f4 {[%clk 0:02:49.1]} 13... exf4 {[%clk 0:02:50.7]} 14.
Bxf4 {[%clk 0:02:48.8]} 14... O-O {[%clk 0:02:48.1]} 15. Qd2 {[%clk 0:02:47.9]}
15... Nbd7 {[%clk 0:02:44]} 16. Kh1 {[%clk 0:02:40.5]} 16... Qb6 {[%clk
0:02:33]} 17. Be3 {[%clk 0:02:37.7]} 17... Qb7 {[%clk 0:02:26.8]} 18. Nd4 {[%clk
0:02:31.4]} 18... Ne5 {[%clk 0:02:20.4]} 19. Bg5 {[%clk 0:02:22.8]} 19... Nfd7
{[%clk 0:01:50.5]} 20. b3 {[%clk 0:02:19.1]} 20... Rfe8 {[%clk 0:01:44.8]} 21.
Rae1 {[%clk 0:02:14]} 21... Qb6 {[%clk 0:01:33.6]} 22. Nc6 {[%clk 0:02:11.5]}
22... a5 {[%clk 0:01:28.7]} 23. Be3 {[%clk 0:01:48.7]} 23... Qc7 {[%clk
0:01:24.9]} 24. Bd4 {[%clk 0:01:47.5]} 24... Rac8 {[%clk 0:00:29.8]} 25. Qf4
{[%clk 0:01:38.9]} 25... Ra8 {[%clk 0:00:15.2]} 26. g5 {[%clk 0:01:38.6]} 26...
Rac8 {[%clk 0:00:14.2]} 27. h4 {[%clk 0:01:38.4]} 27... Nb8 {[%clk 0:00:12.2]}
28. Nxb8 {[%clk 0:01:13.9]} 28... Rxb8 {[%clk 0:00:11.8]} 29. h5 {[%clk
0:01:14.4]} 29... Rb7 {[%clk 0:00:08.6]} 30. Re2 {[%clk 0:01:09.7]} 30... Qe7
{[%clk 0:00:06.5]} 31. Ref2 {[%clk 0:00:48.1]} 31... Rc7 {[%clk 0:00:06.2]} 32.
Qh4 {[%clk 0:00:44.8]} 32... Rf8 {[%clk 0:00:05.9]} 33. Re2 {[%clk 0:00:42.7]}
33... Qd7 {[%clk 0:00:05.9]} 34. Be4 {[%clk 0:00:39.4]} 34... Qc8 {[%clk
0:00:05.7]} 35. Rh2 {[%clk 0:00:34.2]} 35... Qg4 {[%clk 0:00:05.2]} 36. Qxg4
{[%clk 0:00:25.5]} 36... Nxg4 {[%clk 0:00:05.1]} 37. Bxg7 {[%clk 0:00:24.2]}
37... Kxg7 {[%clk 0:00:04.5]} 38. Re2 {[%clk 0:00:21.7]} 38... gxh5 {[%clk
0:00:03.6]} 39. Kg2 {[%clk 0:00:21]} 39... Ne5 {[%clk 0:00:03.5]} 40. Kg3 {[%clk
0:00:20.6]} 40... Rc3+ {[%clk 0:00:03.5]} 41. Kf4 {[%clk 0:00:20.5]} 41... Rfc8
{[%clk 0:00:03.6]} 42. Rh2 {[%clk 0:00:19.7]} 42... h6 {[%clk 0:00:01.7]} 43.
gxh6+ {[%clk 0:00:18.8]} 43... Kxh6 {[%clk 0:00:02.6]} 44. Rfh1 {[%clk
0:00:19.2]} 44... Kg7 {[%clk 0:00:02.3]} 45. Rxh5 {[%clk 0:00:19]} 45... Rxc2
{[%clk 0:00:01.9]} 46. Rg5+ {[%clk 0:00:18]} 46... Kf6 {[%clk 0:00:02.1]} 47.
Bxc2 {[%clk 0:00:16.1]} 1-0

[Event "*** Titled Tuesday Blitz"]
[Site "Chess.com"]
[Date "2020.04.28"]
[Round "9"]
[White "LittlePeasant"]
[Black "kingmonkey2006"]
[Result "0-1"]
[WhiteElo "2750"]
[BlackElo "2623"]
[TimeControl "180+1"]
[EndTime "11:46:42 PDT"]
[Termination "kingmonkey2006 won on time"]

1. Nf3 {[%clk 0:03:00.9]} 1... Nf6 {[%clk 0:02:59.3]} 2. c4 {[%clk 0:02:58.9]}
2... e6 {[%clk 0:02:59.8]} 3. g3 {[%clk 0:02:55.8]} 3... d5 {[%clk 0:03:00.3]}
4. b3 {[%clk 0:02:55.9]} 4... Be7 {[%clk 0:03:00.7]} 5. Bg2 {[%clk 0:02:55.2]}
5... O-O {[%clk 0:03:01.2]} 6. O-O {[%clk 0:02:55.7]} 6... c6 {[%clk 0:03:01.3]}
7. Bb2 {[%clk 0:02:55.1]} 7... b6 {[%clk 0:03:01.8]} 8. d3 {[%clk 0:02:55.1]}
8... Bb7 {[%clk 0:03:02.5]} 9. Qc2 {[%clk 0:02:55.2]} 9... Nbd7 {[%clk
0:03:02.9]} 10. Nbd2 {[%clk 0:02:55.2]} 10... a5 {[%clk 0:03:03.6]} 11. a3
{[%clk 0:02:55.1]} 11... Rc8 {[%clk 0:03:02.1]} 12. e4 {[%clk 0:02:52.3]} 12...
Qc7 {[%clk 0:03:02.6]} 13. e5 {[%clk 0:02:46]} 13... Ne8 {[%clk 0:03:02.6]} 14.
Rae1 {[%clk 0:02:44.2]} 14... c5 {[%clk 0:02:58.4]} 15. h4 {[%clk 0:02:43.1]}
15... g6 {[%clk 0:02:56.5]} 16. cxd5 {[%clk 0:02:19.5]} 16... Bxd5 {[%clk
0:02:50.2]} 17. Ne4 {[%clk 0:02:19.2]} 17... Qb7 {[%clk 0:02:40.6]} 18. Qc1
{[%clk 0:02:17.2]} 18... Ng7 {[%clk 0:02:25.5]} 19. Qf4 {[%clk 0:01:34.9]} 19...
Bxe4 {[%clk 0:02:18.7]} 20. Rxe4 {[%clk 0:01:34]} 20... Qc7 {[%clk 0:02:13.6]}
21. Rfe1 {[%clk 0:01:28]} 21... Rfd8 {[%clk 0:02:13.5]} 22. g4 {[%clk
0:01:24.1]} 22... Nf8 {[%clk 0:02:12.1]} 23. R1e3 {[%clk 0:01:20.3]} 23... b5
{[%clk 0:01:58.6]} 24. Qh6 {[%clk 0:01:14]} 24... a4 {[%clk 0:01:49.8]} 25. bxa4
{[%clk 0:01:10.5]} 25... c4 {[%clk 0:01:50.1]} 26. dxc4 {[%clk 0:01:06.5]} 26...
bxc4 {[%clk 0:01:49.2]} 27. Bc3 {[%clk 0:01:00.7]} 27... Rd3 {[%clk 0:01:34]}
28. Bf1 {[%clk 0:00:48.9]} 28... Rd1 {[%clk 0:01:19.1]} 29. Re1 {[%clk
0:00:30.1]} 29... Qd7 {[%clk 0:01:04.1]} 30. Nd2 {[%clk 0:00:27.7]} 30... Rxe1
{[%clk 0:01:04.2]} 31. Rxe1 {[%clk 0:00:28.2]} 31... Qxa4 {[%clk 0:01:01.6]} 32.
Ne4 {[%clk 0:00:25.1]} 32... Qxa3 {[%clk 0:00:57.9]} 33. Rd1 {[%clk 0:00:20.1]}
33... Rd8 {[%clk 0:00:54.5]} 34. Nf6+ {[%clk 0:00:17.5]} 34... Kh8 {[%clk
0:00:52.1]} 35. Rc1 {[%clk 0:00:05.3]} 35... Qc5 {[%clk 0:00:35.7]} 36. Re1
{[%clk 0:00:04.8]} 36... Qa3 {[%clk 0:00:35.1]} 37. Re3 {[%clk 0:00:05.1]} 37...
Qc1 {[%clk 0:00:35.4]} 38. Kg2 {[%clk 0:00:04]} 38... Rd1 {[%clk 0:00:29.9]} 39.
Be2 {[%clk 0:00:02.7]} 39... Rg1+ {[%clk 0:00:29.7]} 40. Kf3 {[%clk 0:00:03.3]}
40... Rh1 {[%clk 0:00:29.7]} 41. Ke4 {[%clk 0:00:03.3]} 41... Qc2+ {[%clk
0:00:28.4]} 42. Kd4 {[%clk 0:00:03.8]} 42... Rc1 {[%clk 0:00:24]} 43. Rf3 {[%clk
0:00:02.6]} 43... Qxe2 {[%clk 0:00:21.5]} 44. Nxh7 {[%clk 0:00:01.6]} 44... Rd1+
{[%clk 0:00:21.1]} 0-1

[Event "*** Titled Tuesday Blitz"]
[Site "Chess.com"]
[Date "2020.04.28"]
[Round "9"]
[White "GianmarcoVaR"]
[Black "Piotrek1979"]
[Result "0-1"]
[WhiteElo "2538"]
[BlackElo "2415"]
[TimeControl "180+1"]
[EndTime "11:46:43 PDT"]
[Termination "Piotrek1979 won by checkmate"]

1. e4 {[%clk 0:03:00.9]} 1... c6 {[%clk 0:03:00]} 2. d4 {[%clk 0:02:56.4]} 2...
d5 {[%clk 0:03:00.9]} 3. e5 {[%clk 0:02:55.7]} 3... Bf5 {[%clk 0:03:00.8]} 4.
Nf3 {[%clk 0:02:55.7]} 4... e6 {[%clk 0:03:01.2]} 5. Be2 {[%clk 0:02:54.8]} 5...
Ne7 {[%clk 0:03:01.5]} 6. O-O {[%clk 0:02:54.1]} 6... Nd7 {[%clk 0:03:02]} 7.
Nbd2 {[%clk 0:02:50]} 7... h6 {[%clk 0:02:57.3]} 8. c3 {[%clk 0:02:44.7]} 8...
c5 {[%clk 0:02:55]} 9. dxc5 {[%clk 0:02:44.4]} 9... Nxc5 {[%clk 0:02:52.6]} 10.
Nd4 {[%clk 0:02:40]} 10... a6 {[%clk 0:02:50.4]} 11. N2b3 {[%clk 0:02:16.9]}
11... Nd7 {[%clk 0:02:30.7]} 12. f4 {[%clk 0:02:10.4]} 12... Be4 {[%clk
0:02:11.4]} 13. Be3 {[%clk 0:02:02.9]} 13... Nf5 {[%clk 0:01:59.6]} 14. Nxf5
{[%clk 0:01:59.8]} 14... exf5 {[%clk 0:02:00.5]} 15. e6 {[%clk 0:01:52.3]} 15...
fxe6 {[%clk 0:01:59.1]} 16. Bh5+ {[%clk 0:01:51.6]} 16... Ke7 {[%clk 0:01:55.9]}
17. Nc5 {[%clk 0:01:36.3]} 17... Nxc5 {[%clk 0:01:52]} 18. Bxc5+ {[%clk
0:01:35.9]} 18... Kd7 {[%clk 0:01:52.4]} 19. Qd4 {[%clk 0:01:27.8]} 19... Bxc5
{[%clk 0:01:49.6]} 20. Qxc5 {[%clk 0:01:27.5]} 20... Qe7 {[%clk 0:01:39]} 21.
Qd4 {[%clk 0:01:17.9]} 21... Rac8 {[%clk 0:01:39]} 22. Rfd1 {[%clk 0:01:09.3]}
22... Qc5 {[%clk 0:01:37.9]} 23. Kf2 {[%clk 0:01:03.6]} 23... g5 {[%clk
0:01:32.8]} 24. Bf3 {[%clk 0:00:53.3]} 24... gxf4 {[%clk 0:01:29.5]} 25. Ke2
{[%clk 0:00:40.9]} 25... Qxd4 {[%clk 0:01:19.5]} 26. Rxd4 {[%clk 0:00:41.4]}
26... Rhg8 {[%clk 0:01:14.3]} 27. Kf2 {[%clk 0:00:35.9]} 27... Kd6 {[%clk
0:01:07.8]} 28. Rad1 {[%clk 0:00:33.4]} 28... Ke5 {[%clk 0:01:07.2]} 29. Rb4
{[%clk 0:00:32.1]} 29... b5 {[%clk 0:01:05.2]} 30. a4 {[%clk 0:00:31.7]} 30...
Rc4 {[%clk 0:01:05]} 31. Rxc4 {[%clk 0:00:27.9]} 31... bxc4 {[%clk 0:01:04.8]}
32. Rd2 {[%clk 0:00:18.9]} 32... a5 {[%clk 0:01:01.1]} 33. Re2 {[%clk 0:00:15]}
33... Rb8 {[%clk 0:00:55.4]} 34. Rd2 {[%clk 0:00:14.1]} 34... Kd6 {[%clk
0:00:54.6]} 35. g3 {[%clk 0:00:13]} 35... fxg3+ {[%clk 0:00:53.8]} 36. hxg3
{[%clk 0:00:12.7]} 36... Bxf3 {[%clk 0:00:51.7]} 37. Kxf3 {[%clk 0:00:12.7]}
37... e5 {[%clk 0:00:51.9]} 38. Rh2 {[%clk 0:00:12.8]} 38... Kc5 {[%clk
0:00:51]} 39. Ke3 {[%clk 0:00:08.9]} 39... Rb3 {[%clk 0:00:49.6]} 40. Rxh6
{[%clk 0:00:04.8]} 40... d4+ {[%clk 0:00:49.7]} 41. Kd2 {[%clk 0:00:04]} 41...
Rxb2+ {[%clk 0:00:50.1]} 42. Kc1 {[%clk 0:00:03.9]} 42... dxc3 {[%clk 0:00:44]}
43. Rh5 {[%clk 0:00:04.4]} 43... Kd4 {[%clk 0:00:43.5]} 44. Rxf5 {[%clk
0:00:04.4]} 44... Rg2 {[%clk 0:00:43.6]} 45. Rf8 {[%clk 0:00:02.7]} 45... c2
{[%clk 0:00:43.6]} 46. Rf3 {[%clk 0:00:02]} 46... e4 {[%clk 0:00:42.4]} 47. Ra3
{[%clk 0:00:01.6]} 47... Rg1+ {[%clk 0:00:40.2]} 48. Kxc2 {[%clk 0:00:01.3]}
48... Rg2+ {[%clk 0:00:41.1]} 49. Kc1 {[%clk 0:00:01.8]} 49... c3 {[%clk
0:00:41.5]} 50. Rb3 {[%clk 0:00:01.9]} 50... Kd3 {[%clk 0:00:39.9]} 51. Kb1
{[%clk 0:00:02.5]} 51... Rb2+ {[%clk 0:00:38]} 52. Rxb2 {[%clk 0:00:02.4]} 52...
cxb2 {[%clk 0:00:38.9]} 53. g4 {[%clk 0:00:02.4]} 53... e3 {[%clk 0:00:39.8]}
54. g5 {[%clk 0:00:03.3]} 54... e2 {[%clk 0:00:40.1]} 55. g6 {[%clk 0:00:04.2]}
55... e1=Q+ {[%clk 0:00:40.1]} 56. Kxb2 {[%clk 0:00:04.4]} 56... Qc3+ {[%clk
0:00:40.6]} 57. Ka2 {[%clk 0:00:05]} 57... Kc2 {[%clk 0:00:40.1]} 58. g7 {[%clk
0:00:04.4]} 58... Qb2# {[%clk 0:00:41]} 0-1

[Event "*** Titled Tuesday Blitz"]
[Site "Chess.com"]
[Date "2020.04.28"]
[Round "9"]
[White "SiddharthGMJagadeesh"]
[Black "Khayala13"]
[Result "1-0"]
[WhiteElo "2484"]
[BlackElo "2338"]
[TimeControl "180+1"]
[EndTime "11:46:44 PDT"]
[Termination "SiddharthGMJagadeesh won on time"]

1. d4 {[%clk 0:03:00.9]} 1... Nf6 {[%clk 0:02:57.7]} 2. Nf3 {[%clk 0:02:59]}
2... d5 {[%clk 0:02:57]} 3. c4 {[%clk 0:02:57.4]} 3... e6 {[%clk 0:02:57.3]} 4.
Nc3 {[%clk 0:02:56.5]} 4... Bb4 {[%clk 0:02:52.6]} 5. Bg5 {[%clk 0:02:55.2]}
5... O-O {[%clk 0:02:50.2]} 6. e3 {[%clk 0:02:49.8]} 6... dxc4 {[%clk
0:02:47.2]} 7. Bxc4 {[%clk 0:02:49]} 7... Nbd7 {[%clk 0:02:43.4]} 8. O-O {[%clk
0:02:47.9]} 8... b6 {[%clk 0:02:40.2]} 9. Qe2 {[%clk 0:02:44.2]} 9... Bb7 {[%clk
0:02:39.1]} 10. Rfd1 {[%clk 0:02:44.2]} 10... Qc8 {[%clk 0:02:36.4]} 11. Rac1
{[%clk 0:02:43.1]} 11... Ne4 {[%clk 0:02:28.5]} 12. Nxe4 {[%clk 0:02:36.7]}
12... Bxe4 {[%clk 0:02:29.4]} 13. Bb5 {[%clk 0:02:28]} 13... h6 {[%clk
0:02:20.2]} 14. Bf4 {[%clk 0:02:27]} 14... c6 {[%clk 0:02:19.1]} 15. Ba4 {[%clk
0:02:19.9]} 15... Qb7 {[%clk 0:02:16]} 16. Ne5 {[%clk 0:02:15.1]} 16... Nxe5
{[%clk 0:02:14.2]} 17. Bxe5 {[%clk 0:02:16]} 17... c5 {[%clk 0:02:08.1]} 18. a3
{[%clk 0:02:10.5]} 18... Ba5 {[%clk 0:01:27.8]} 19. f3 {[%clk 0:01:59.3]} 19...
Bg6 {[%clk 0:01:24.8]} 20. b4 {[%clk 0:01:55.7]} 20... cxb4 {[%clk 0:01:23.8]}
21. Bc6 {[%clk 0:01:55.4]} 21... Qe7 {[%clk 0:01:18.6]} 22. Bxa8 {[%clk
0:01:53.5]} 22... Rxa8 {[%clk 0:01:19.5]} 23. axb4 {[%clk 0:01:53.7]} 23... Bxb4
{[%clk 0:01:19.8]} 24. Qa6 {[%clk 0:01:53.3]} 24... f6 {[%clk 0:01:05.2]} 25.
Rc7 {[%clk 0:01:50.5]} 25... Qd8 {[%clk 0:00:56.6]} 26. Bg3 {[%clk 0:01:45.6]}
26... e5 {[%clk 0:00:43.4]} 27. Rxa7 {[%clk 0:01:34.7]} 27... Rc8 {[%clk
0:00:41.7]} 28. d5 {[%clk 0:01:14.7]} 28... Bc5 {[%clk 0:00:34.8]} 29. Bf2
{[%clk 0:01:10.9]} 29... Rb8 {[%clk 0:00:26.7]} 30. e4 {[%clk 0:00:59.5]} 30...
Qd6 {[%clk 0:00:20.4]} 31. Qb5 {[%clk 0:00:52.3]} 31... Bxf2+ {[%clk 0:00:19.5]}
32. Kxf2 {[%clk 0:00:53.2]} 32... f5 {[%clk 0:00:18.8]} 33. exf5 {[%clk
0:00:50.7]} 33... Bxf5 {[%clk 0:00:19.7]} 34. Qc6 {[%clk 0:00:48.3]} 34... Qb4
{[%clk 0:00:17.2]} 35. Qc7 {[%clk 0:00:45]} 35... Qf8 {[%clk 0:00:16.8]} 36. d6
{[%clk 0:00:40.6]} 36... e4 {[%clk 0:00:16.9]} 37. d7 {[%clk 0:00:38.5]} 37...
Rd8 {[%clk 0:00:16.2]} 38. Qxb6 {[%clk 0:00:27.6]} 38... exf3 {[%clk 0:00:15.4]}
39. gxf3 {[%clk 0:00:28.5]} 39... Bg4 {[%clk 0:00:14.1]} 40. Qb3+ {[%clk
0:00:23.7]} 40... Kh8 {[%clk 0:00:13.7]} 41. Kg2 {[%clk 0:00:22.2]} 41... Bh5
{[%clk 0:00:11.9]} 42. Re1 {[%clk 0:00:20.1]} 42... Qf6 {[%clk 0:00:09.6]} 43.
Qd5 {[%clk 0:00:16.8]} 43... Qg6+ {[%clk 0:00:08.4]} 44. Kh1 {[%clk 0:00:16.4]}
44... Qf6 {[%clk 0:00:08.4]} 45. Qxh5 {[%clk 0:00:15.6]} 1-0